bitfinex/quotes_ETHUSD_20240721
["timestamp","ask_amount","ask_price","bid_price","bid_amount"]
[1721577576315,1.19637885,3506.7,3506.6,2.4292]
[1721577576513,1.19637885,3506.7,3506.6,2.9792]
[1721577577403,4.31730104,3506.7,3506.3,18.6516377]
[1721577577604,1.19621626,3506.5,3506.3,18.6516377]
[1721577578524,1.19621626,3506.4,3506.3,18.6516377]
[1721577578821,1.19621626,3506.5,3506.3,18.6516377]
[1721577579116,1.19621626,3506.5,3506.4,18.6516377]
[1721577579505,1.19621626,3506.5,3506.4,20.9194377]
[1721577579708,1.19621626,3506.6,3506.4,20.9194377]
[1721577580599,0.07262023,3506.5,3506.4,20.9194377]
[1721577581882,0.07262023,3506.5,3506.4,18.6516377]
[1721577581883,1.26883649,3506.5,3506.4,18.6516377]
[1721577582090,0.07262023,3506.5,3506.4,19.2016377]
[1721577582390,0.07262023,3506.5,3506.4,18.6516377]
[1721577583480,1.26894069,3506.5,3506.4,18.6516377]
[1721577583899,0.07262023,3506.5,3506.4,18.6516377]
[1721577587563,1.26862385,3506.5,3506.4,18.6516377]
[1721577587715,1.26862385,3506.5,3506.4,20.9194377]
[1721577588156,1.19600362,3506.5,3506.4,20.9194377]
[1721577588493,1.26862272,3506.5,3506.4,20.9194377]
[1721577588813,0.0726191,3506.5,3506.4,20.9194377]
[1721577589732,1.2684779,3506.5,3506.4,20.9194377]
[1721577591055,1.2684768,3506.5,3506.4,20.9194377]
[1721577595362,0.072618,3506.5,3506.4,20.9194377]
[1721577595861,1.2684768,3506.5,3506.4,20.9194377]
[1721577596060,0.072618,3506.5,3506.4,21.4694377]
[1721577596363,1.1958588,3506.7,3506.4,21.4694377]
[1721577596864,1.1958588,3506.7,3506.5,0.55]
[1721577596865,0.07263758,3506.6,3506.5,0.55]
[1721577597027,0.07263758,3506.6,3506.5,19.2016377]
[1721577600846,1.26818961,3506.6,3506.5,19.2016377]
[1721577607162,1.26818961,3506.6,3506.5,21.5877377]
[1721577607886,1.26818961,3506.6,3506.5,21.5628377]
[1721577608284,1.26818961,3506.6,3506.5,24.4146777]
[1721577609607,1.26818961,3506.6,3506.5,27.2665177]
[1721577611995,1.26818961,3506.6,3506.5,24.4146777]
[1721577611996,0.07263758,3506.6,3506.5,24.4146777]
[1721577614334,0.07263758,3506.6,3506.5,27.2665177]
[1721577617438,0.07263758,3506.6,3506.5,24.4146777]
[1721577617809,1.19555203,3507.5,3506.8,2.3408]
[1721577618017,1.19555203,3507.5,3506.9,0.55]
[1721577618210,0.06792821,3507.4,3506.9,0.55]
[1721577618417,1.99819155,3507.5,3506.9,0.55]
[1721577618629,0.06792715,3507.3,3506.9,0.55]
[1721577618840,1.19555203,3507.5,3506.9,0.55]
[1721577619010,0.06792888,3507.2,3506.9,0.55]
[1721577619208,1.19555203,3507.5,3506.9,0.55]
[1721577619522,0.06792782,3507.1,3506.9,0.55]
[1721577619708,1.19555203,3507.5,3506.9,0.55]
[1721577620103,0.06793099,3507.4,3506.9,0.55]
[1721577620530,1.19555203,3507.5,3506.9,0.55]
[1721577620841,0.06793794,3507.4,3506.9,0.55]
[1721577621170,2.8512,3507.3,3506.6,21.1332377]
[1721577621451,1.26349116,3507.2,3506.6,18.6516377]
[1721577622037,0.06793913,3507.2,3506.6,18.6516377]
[1721577622720,0.06793913,3507.2,3506.7,0.55]
[1721577623924,0.06793913,3507.2,3506.8,18.6516377]
[1721577625219,0.3710036,3507.2,3506.8,18.6516377]
[1721577625420,2.85137,3507.1,3506.8,18.6516377]
[1721577625778,1.19555203,3507.1,3506.8,18.6516377]
[1721577625919,1.19555203,3507.0,3506.8,18.6516377]
[1721577626112,1.26347961,3507.0,3506.8,18.6516377]
[1721577626311,0.59091546,3506.9,3506.8,18.6516377]
[1721577626857,0.65881076,3506.9,3506.8,18.6516377]
[1721577627063,0.0678953,3506.9,3506.8,18.6516377]
[1721577627352,1.19555203,3507.1,3506.8,18.6516377]
[1721577627554,1.19555203,3507.2,3506.8,18.6516377]
[1721577627714,0.06789934,3507.0,3506.8,18.6516377]
[1721577627913,1.19555203,3507.2,3506.8,18.6516377]
[1721577628151,0.06790771,3506.9,3506.8,18.6516377]
[1721577628352,1.19555203,3507.2,3506.8,18.6516377]
[1721577628738,0.06790762,3507.1,3506.8,18.6516377]
[1721577629672,0.06790762,3507.1,3506.7,18.6516377]
[1721577633283,1.26345965,3507.1,3506.7,18.6516377]
[1721577634012,1.19555203,3507.0,3506.7,18.6516377]
[1721577634298,4.04704203,3507.0,3506.7,18.6516377]
[1721577634510,1.26347195,3506.9,3506.7,18.6516377]
[1721577635075,0.06791992,3506.9,3506.7,18.6516377]
[1721577635589,0.06791992,3506.9,3506.8,18.6516377]
[1721577637705,2.91943992,3506.9,3506.8,18.6516377]
[1721577637869,2.05212363,3506.9,3506.5,18.6516377]
[1721577638069,2.85169,3506.7,3506.5,18.6516377]
[1721577638294,2.85176,3506.6,3506.5,18.6516377]
[1721577638611,2.91963664,3506.6,3506.5,18.6516377]
[1721577639304,3.87407351,3506.6,3506.5,18.6516377]
[1721577639614,5.06962554,3506.6,3506.5,18.6516377]
[1721577640818,3.87407351,3506.6,3506.5,18.6516377]
[1721577641023,5.06962554,3506.6,3506.5,18.6516377]
[1721577641311,3.87407351,3506.6,3506.5,18.6516377]
[1721577641495,5.06962554,3506.6,3506.5,18.6516377]
[1721577641807,3.87407351,3506.6,3506.4,0.01465]
[1721577642009,5.06962554,3506.6,3506.4,0.01465]
[1721577642313,0.06787664,3506.6,3506.4,0.01465]
[1721577642904,2.91963664,3506.6,3506.4,0.01465]
[1721577645630,2.85184,3506.5,3506.4,0.01465]
[1721577646111,2.91968108,3506.5,3506.4,0.01465]
[1721577648422,5.77152108,3506.5,3506.4,0.01465]
[1721577648621,6.61733813,3506.5,3506.4,0.01465]
[1721577650250,3.76549813,3506.5,3506.4,0.01465]
[1721577651126,5.77152108,3506.5,3506.4,0.01465]
[1721577652952,6.96707311,3506.5,3506.4,0.01465]
[1721577653415,7.26463567,3506.5,3506.4,0.01465]
[1721577654109,11.20822364,3506.5,3506.4,0.01465]
[1721577654848,14.20822364,3506.5,3506.4,0.01465]
[1721577655151,16.10840969,3506.5,3506.4,0.01465]
[1721577655646,16.1071948,3506.5,3506.4,0.01465]
[1721577658119,17.89475927,3506.5,3506.4,0.01465]
[1721577658327,16.1071948,3506.5,3506.4,0.01465]
[1721577658564,24.10259927,3506.5,3506.4,0.01465]
[1721577658744,22.3150348,3506.5,3506.4,0.01465]
[1721577658921,22.6007348,3506.5,3506.4,0.01465]
[1721577660049,39.7964088,3506.5,3506.4,0.01465]
[1721577660253,36.7320808,3506.5,3506.4,0.01465]
[1721577660827,8.55627,3506.2,3506.1,18.6516377]
[1721577661054,21.38484164,3506.2,3506.1,18.6516377]
[1721577661224,18.72288124,3506.2,3506.1,18.6516377]
[1721577661560,16.93730722,3506.2,3506.1,18.6516377]
[1721577664726,18.42430822,3506.2,3506.1,18.6516377]
[1721577665264,16.93730722,3506.2,3506.1,18.6516377]
[1721577665556,2.85282,3505.3,3505.2,2.4525]
[1721577665941,2.92023943,3505.3,3505.2,2.4525]
[1721577668521,5.77305943,3505.3,3505.2,2.4525]
[1721577668861,6.35036537,3505.3,3505.2,2.4525]
[1721577669072,2.85315,3504.9,3504.6,2.3214]
[1721577670732,2.85323,3504.8,3504.6,2.3214]
[1721577671357,2.92069526,3504.7,3504.6,2.3214]
[1721577672339,5.77400526,3504.7,3504.6,2.3214]
[1721577672544,6.35140579,3504.7,3504.6,2.3214]
[1721577672734,5.77400526,3504.7,3504.6,2.3214]
[1721577684040,2.8536,3504.4,3504.3,2.2815]
[1721577684446,2.92080783,3504.4,3504.3,2.2815]
[1721577685592,0.06720783,3504.4,3504.3,2.2815]
[1721577687151,2.85331,3504.7,3504.3,2.2815]
[1721577687350,2.3253,3505.7,3504.3,2.2815]
[1721577687351,0.06713319,3504.4,3504.3,2.2815]
[1721577687574,2.85348,3504.5,3504.3,2.2815]
[1721577687742,0.06712833,3504.4,3504.3,2.2815]
[1721577689151,2.92067833,3504.4,3504.3,2.2815]
[1721577690315,5.77422833,3504.4,3504.3,2.2815]
[1721577690948,2.92067833,3504.4,3504.3,2.2815]
[1721577691147,3.49808616,3504.4,3504.3,2.2815]
[1721577691365,2.85379,3504.1,3504.0,20.5948377]
[1721577692212,2.85367,3504.3,3503.7,9.61e-06]
[1721577692346,2.85404,3503.8,3503.7,9.61e-06]
[1721577692882,5.77513725,3503.8,3503.7,9.61e-06]
[1721577693259,0.06705725,3503.8,3503.7,9.61e-06]
[1721577693601,2.85396,3503.9,3503.7,9.61e-06]
[1721577693955,0.06697371,3503.8,3503.7,9.61e-06]
[1721577694703,2.92101371,3503.8,3503.7,9.61e-06]
[1721577694854,3.52789439,3503.8,3503.7,9.61e-06]
[1721577696704,6.38193439,3503.8,3503.7,9.61e-06]
[1721577699159,3.52789439,3503.8,3503.7,9.61e-06]
[1721577700088,0.06697371,3503.8,3503.7,9.61e-06]
[1721577700370,2.85397,3503.9,3503.7,9.61e-06]
[1721577700557,0.06688683,3503.8,3503.7,9.61e-06]
[1721577701199,2.92092683,3503.8,3503.7,9.61e-06]
[1721577703673,0.06688683,3503.8,3503.7,9.61e-06]
[1721577704022,2.85391,3504.0,3503.7,2.29900961]
[1721577704163,0.06690161,3503.8,3503.7,2.29900961]
[1721577704364,2.85396,3503.9,3503.7,2.29900961]
[1721577704577,0.0669091,3503.8,3503.7,2.29900961]
[1721577705698,0.0669091,3503.8,3503.7,9.61e-06]
[1721577705899,2.9209491,3503.8,3503.7,9.61e-06]
[1721577706099,3.52781332,3503.8,3503.7,9.61e-06]
[1721577709395,2.9209491,3503.8,3503.7,9.61e-06]
[1721577712586,0.0669091,3503.8,3503.7,9.61e-06]
[1721577712817,2.85397,3503.9,3503.7,9.61e-06]
[1721577713043,0.06686452,3503.8,3503.7,9.61e-06]
[1721577713538,0.06686452,3503.8,3503.7,2.29900961]
[1721577715422,2.92090452,3503.8,3503.7,2.29900961]
[1721577718189,0.06686452,3503.8,3503.7,2.29900961]
[1721577718437,2.85392,3504.0,3503.7,2.29900961]
[1721577718604,0.06685115,3503.8,3503.7,2.29900961]
[1721577718818,1.18902894,3504.4,3503.7,2.29900961]
[1721577719046,2.85363,3504.3,3503.7,2.29900961]
[1721577719368,2.9204991,3504.3,3503.7,2.29900961]
[1721577721570,2.85394,3504.0,3503.7,2.29900961]
[1721577722079,0.06689691,3503.9,3503.7,2.29900961]
[1721577724083,4.04280894,3504.2,3503.7,2.29900961]
[1721577724258,0.06691396,3503.8,3503.7,2.29900961]
[1721577724460,3.69247704,3504.1,3503.7,2.29900961]
[1721577724854,0.06691607,3504.0,3503.7,2.29900961]
[1721577733081,1.18902894,3504.2,3503.7,2.29900961]
[1721577733587,0.06690879,3504.1,3503.7,2.29900961]
[1721577733806,0.06690879,3504.1,3503.7,20.91064731]
[1721577734119,0.06690879,3504.1,3503.7,18.61164731]
[1721577734326,0.06690879,3504.1,3503.8,2.3583]
[1721577735626,4.04275894,3504.2,3503.8,2.3583]
[1721577735797,0.40427589,3504.1,3503.8,2.3583]
[1721577735978,1.18902894,3504.2,3503.8,2.3583]
[1721577736184,0.06690879,3504.1,3503.8,2.3583]
[1721577739836,0.06690879,3504.1,3503.8,20.8799377]
[1721577740330,1.18902894,3504.2,3503.8,20.8799377]
[1721577744291,1.18902894,3504.1,3503.8,20.8799377]
[1721577744491,0.0669119,3504.0,3503.8,20.8799377]
[1721577744922,1.25594084,3504.0,3503.8,20.8799377]
[1721577745256,0.0669119,3504.0,3503.8,20.8799377]
[1721577745692,0.0669119,3504.0,3503.9,18.5216377]
[1721577745893,1.25594084,3504.0,3503.9,18.5216377]
[1721577746136,0.0669119,3504.0,3503.9,18.5216377]
[1721577746291,4.38492321,3504.0,3503.9,18.5216377]
[1721577746503,3.19589427,3504.0,3503.9,18.5216377]
[1721577747102,0.34201427,3504.0,3503.9,18.5216377]
[1721577747306,1.26305351,3504.0,3503.9,18.5216377]
[1721577750694,0.0669119,3504.0,3503.9,18.5216377]
[1721577751207,1.56205988,3504.0,3503.9,18.5216377]
[1721577751404,0.0669119,3504.0,3503.9,18.5216377]
[1721577751597,0.0669119,3504.0,3503.8,2.3583]
[1721577751798,1.19615245,3503.9,3503.8,2.3583]
[1721577752014,1.26305494,3503.9,3503.8,2.3583]
[1721577752624,1.19615245,3504.1,3503.8,2.9083]
[1721577752795,0.06689101,3504.0,3503.9,2.8201]
[1721577752995,1.49514798,3504.4,3503.9,2.8201]
[1721577752996,1.19615245,3504.3,3503.9,2.8201]
[1721577753629,0.06689312,3504.2,3503.9,2.8201]
[1721577753842,1.19615245,3504.3,3503.9,2.8201]
[1721577754199,1.26304557,3504.2,3503.9,2.8201]
[1721577754639,1.19615245,3504.1,3503.9,2.2701]
[1721577754997,0.06689101,3504.0,3503.9,2.2701]
[1721577756021,2.92077101,3504.0,3503.9,2.2701]
[1721577756227,0.06689101,3504.0,3503.9,2.2701]
[1721577756399,2.92077101,3504.0,3503.9,2.2701]
[1721577756606,3.64775664,3504.0,3503.7,2.27820961]
[1721577756905,1.19642425,3503.9,3503.7,2.27820961]
[1721577757211,0.0669293,3503.8,3503.7,2.27820961]
[1721577757638,1.19642425,3504.0,3503.7,2.27820961]
[1721577757835,0.06691677,3503.8,3503.7,2.27820961]
[1721577758037,1.19642425,3504.0,3503.7,2.27820961]
[1721577758240,0.06691071,3503.8,3503.7,2.27820961]
[1721577758442,1.19642425,3504.1,3503.7,2.27820961]
[1721577758799,0.06691959,3504.0,3503.7,2.27820961]
[1721577760240,1.19642425,3504.1,3503.7,2.27820961]
[1721577760657,0.06691959,3504.0,3503.7,2.27820961]
[1721577762143,1.26334384,3504.0,3503.7,2.27820961]
[1721577763530,1.26334384,3504.0,3503.7,20.79984731]
[1721577763854,1.19642425,3503.9,3503.8,3.1499]
[1721577764012,0.06691959,3504.0,3503.9,8.01282]
[1721577764207,1.19642425,3504.6,3504.1,2.85377]
[1721577764414,0.06691246,3504.5,3504.2,2.3049]
[1721577764640,0.06691246,3504.5,3504.1,3.69877]
[1721577764641,1.19642425,3504.7,3504.4,2.3049]
[1721577764844,0.06691351,3504.6,3504.4,2.3049]
[1721577765246,1.19642425,3504.8,3504.4,2.3049]
[1721577765454,4.04965425,3504.8,3504.4,2.3049]
[1721577765763,1.26333882,3504.7,3504.4,2.3049]
[1721577766520,0.06691457,3504.7,3504.4,2.3049]
[1721577766850,1.19642425,3504.7,3504.4,2.3049]
[1721577767051,2.85347,3504.5,3504.4,2.3049]
[1721577767255,4.04989425,3504.5,3504.4,2.3049]
[1721577767428,4.11680671,3504.5,3504.4,2.3049]
[1721577768239,1.26333671,3504.5,3504.4,2.3049]
[1721577768553,0.06691246,3504.5,3504.4,2.3049]
[1721577768754,0.06691246,3504.5,3504.4,2.8549]
[1721577768960,1.49110573,3504.8,3504.4,2.8549]
[1721577769162,0.06691246,3504.5,3504.4,2.8549]
[1721577769465,1.49110573,3504.8,3504.4,2.8549]
[1721577769644,0.06691246,3504.5,3504.4,2.8549]
[1721577769859,1.49110573,3504.8,3504.4,2.8549]
[1721577770035,1.49110573,3504.8,3504.6,0.845]
[1721577770036,0.29468148,3504.8,3504.6,0.845]
[1721577770221,1.19642425,3505.1,3504.8,2.3049]
[1721577771144,1.79008884,3505.3,3504.8,2.3049]
[1721577771145,1.49056582,3505.3,3504.9,0.55]
[1721577771349,0.29414157,3505.3,3504.9,0.55]
[1721577773264,0.87789983,3505.3,3504.9,0.55]
[1721577774268,0.29414157,3505.3,3504.9,0.55]
[1721577775862,0.29414157,3505.3,3504.9,1.395]
[1721577776166,0.29414157,3505.3,3505.0,2.3582]
[1721577776360,0.29414157,3505.3,3505.1,1.395]
[1721577776670,1.79181296,3506.0,3505.2,2.3582]
[1721577776671,1.49489459,3506.0,3505.2,2.3582]
[1721577776826,0.29847034,3506.0,3505.5,0.845]
[1721577777028,1.19642425,3506.3,3505.5,0.845]
[1721577777322,0.55416969,3506.3,3505.7,2.3582]
[1721577778421,2.85223,3506.1,3505.7,2.3582]
[1721577779449,4.3423923,3506.4,3505.6,0.55]
[1721577779450,2.85201,3506.3,3505.6,0.55]
[1721577779766,2.85226,3506.0,3505.4,0.55]
[1721577780840,1.4904623,3506.4,3505.6,0.845]
[1721577781042,1.4904623,3506.4,3505.7,0.55]
[1721577781043,2.85208,3506.3,3505.7,0.55]
[1721577781250,1.01943823,3506.2,3505.7,0.55]
[1721577781655,2.8521,3506.2,3505.3,2.3957]
[1721577781931,2.85242,3505.8,3505.4,0.55]
[1721577782155,2.8523,3506.0,3505.4,0.55]
[1721577782471,2.91956611,3506.1,3505.4,0.55]
[1721577782472,2.85234,3505.9,3505.4,0.55]
[1721577782629,2.91971314,3505.9,3505.4,0.55]
[1721577784989,2.85251,3505.7,3504.6,2.4694]
[1721577785132,2.85276,3505.4,3504.7,18.5216377]
[1721577785330,0.06737545,3505.8,3504.7,18.5216377]
[1721577785331,2.85266,3505.5,3504.7,18.5216377]
[1721577785530,0.06733971,3505.4,3504.7,18.5216377]
[1721577785730,2.85277,3505.4,3504.7,18.5216377]
[1721577786705,2.85277,3505.4,3504.8,0.55]
[1721577787146,0.06735539,3505.3,3504.8,0.55]
[1721577787342,2.85262,3505.6,3504.8,0.55]
[1721577787660,2.92001935,3505.5,3504.8,0.55]
[1721577788173,0.06735935,3505.5,3504.8,0.55]
[1721577788374,2.92002935,3505.5,3504.8,0.55]
[1721577788669,2.85283,3505.3,3504.8,0.55]
[1721577789166,0.06723717,3505.2,3504.8,0.55]
[1721577789542,0.06723882,3505.1,3504.8,0.55]
[1721577789746,2.85274,3505.4,3504.8,0.55]
[1721577790144,0.06723911,3505.3,3504.8,0.55]
[1721577790968,0.06723911,3505.3,3504.9,18.5216377]
[1721577791169,0.06723911,3505.3,3505.0,0.55]
[1721577792360,3.14688203,3505.5,3505.0,0.55]
[1721577792559,0.06726159,3505.4,3505.0,0.55]
[1721577793349,0.06726159,3505.4,3505.1,2.4606]
[1721577793871,3.14688203,3505.5,3505.1,2.4606]
[1721577794254,0.06724583,3505.4,3505.1,2.4606]
[1721577795235,2.91999583,3505.4,3505.1,2.4606]
[1721577795933,2.8529,3505.2,3505.1,2.4606]
[1721577796135,2.8529,3505.2,3504.9,18.5216377]
[1721577796136,2.85306,3505.0,3504.9,18.5216377]
[1721577796359,5.70612,3505.0,3504.9,18.5216377]
[1721577796646,2.92025478,3505.0,3504.7,2.2558]
[1721577796851,2.85314,3504.9,3504.7,2.2558]
[1721577797047,2.85314,3504.9,3504.7,20.7774377]
[1721577797247,0.06719221,3504.8,3504.7,20.7774377]
[1721577800185,0.06719221,3504.8,3504.7,21.3274377]
[1721577800367,2.8529,3505.2,3504.7,21.3274377]
[1721577800569,0.06719584,3505.1,3504.7,21.3274377]
[1721577801781,2.92018584,3505.1,3504.7,21.3274377]
[1721577802371,2.85275,3505.4,3504.7,21.3274377]
[1721577802689,0.06495809,3505.3,3504.8,18.5216377]
[1721577802845,2.85299,3505.1,3504.8,18.5216377]
[1721577803242,0.06495712,3505.0,3504.8,18.5216377]
[1721577804850,0.06495712,3505.0,3504.9,2.4478]
[1721577805055,0.29421203,3505.5,3504.9,2.9978]
[1721577805253,0.06488506,3505.4,3505.1,2.4478]
[1721577805663,0.06488506,3505.4,3505.3,2.4478]
[1721577805967,0.06488506,3505.4,3505.3,2.9978]
[1721577808603,0.06488506,3505.4,3505.3,21.5194377]
[1721577809891,0.29421203,3505.5,3505.3,21.5194377]
[1721577810092,0.29421203,3505.5,3505.4,2.9978]
[1721577810601,0.35926881,3505.5,3505.4,2.9978]
[1721577813823,0.06505678,3505.5,3505.4,2.9978]
[1721577814011,2.85234,3505.9,3505.4,2.9978]
[1721577814210,4.04876425,3505.9,3505.5,18.5216377]
[1721577814381,2.85234,3505.9,3505.5,18.5216377]
[1721577815031,1.19642425,3505.9,3505.5,18.5216377]
[1721577815521,1.19642425,3505.9,3505.6,2.3624]
[1721577815723,1.19642425,3506.0,3505.6,2.9124]
[1721577817531,1.19642425,3506.0,3505.7,18.5216377]
[1721577819025,4.04867425,3506.0,3505.7,18.5216377]
[1721577819389,2.85239,3505.9,3505.7,18.5216377]
[1721577819589,0.89734648,3505.8,3505.7,18.5216377]
[1721577819789,0.89734648,3505.8,3505.7,19.0716377]
[1721577820919,1.19642425,3506.0,3505.7,21.3360377]
[1721577820920,0.89734648,3506.0,3505.7,21.3360377]
[1721577821233,0.89734648,3506.0,3505.8,0.55]
[1721577824505,0.89734648,3505.9,3505.8,0.55]
[1721577824830,0.89734648,3506.0,3505.8,0.55]
[1721577826265,0.89734648,3506.0,3505.7,20.7860377]
[1721577826402,3.74975648,3505.8,3505.7,2.2644]
[1721577826607,3.74975648,3505.8,3505.7,2.8144]
[1721577827004,0.96239793,3505.8,3505.7,2.8144]
[1721577827303,3.81480793,3505.8,3505.7,2.8144]
[1721577827616,2.91746145,3505.8,3505.7,2.8144]
[1721577827843,3.81484574,3505.8,3505.7,2.8144]
[1721577828020,2.91746145,3505.8,3505.7,2.8144]
[1721577829936,4.1138857,3505.8,3505.7,2.8144]
[1721577830138,2.91746145,3505.8,3505.7,2.8144]
[1721577832445,2.91746145,3505.8,3505.7,22.6544]
[1721577833259,4.1138857,3505.8,3505.7,22.6544]
[1721577833403,2.91746145,3505.8,3505.7,22.6544]
[1721577833610,4.1138857,3505.8,3505.7,22.6544]
[1721577834346,2.91746145,3505.8,3505.7,22.6544]
[1721577835125,4.11409162,3505.8,3505.7,22.6544]
[1721577836521,2.91746145,3505.8,3505.7,22.6544]
[1721577836930,4.1141685,3505.8,3505.7,22.6544]
[1721577837755,2.91746145,3505.8,3505.7,22.6544]
[1721577837907,4.11420082,3505.8,3505.7,22.6544]
[1721577838424,2.91746145,3505.8,3505.7,22.5044]
[1721577838742,4.11423607,3505.8,3505.7,22.5044]
[1721577839531,2.91746145,3505.8,3505.7,22.5044]
[1721577840035,4.1142483,3505.8,3505.7,22.5044]
[1721577840239,4.1142483,3505.8,3505.7,21.9544]
[1721577842359,5.76987145,3505.8,3505.7,21.9544]
[1721577843157,6.96678974,3505.8,3505.7,21.9544]
[1721577843327,5.76987145,3505.8,3505.7,21.9544]
[1721577843715,2.91746145,3505.8,3505.7,21.9544]
[1721577843913,0.06505145,3505.8,3505.7,21.9544]
[1721577844218,0.06505145,3505.8,3505.7,22.5044]
[1721577844529,0.89775364,3505.9,3505.7,22.5044]
[1721577844757,0.89775364,3505.9,3505.8,0.55]
[1721577845055,0.89775364,3505.9,3505.8,2.8045]
[1721577845350,0.89799144,3505.9,3505.8,2.8045]
[1721577846654,1.19711475,3506.0,3505.8,2.8045]
[1721577846859,0.89804287,3505.9,3505.8,2.8045]
[1721577847471,0.89804287,3506.1,3505.8,2.8045]
[1721577850253,0.89804287,3506.1,3505.9,19.73]
[1721577850535,0.89804287,3506.1,3506.0,2.8045]
[1721577851094,0.96087266,3506.1,3506.0,2.8045]
[1721577851456,0.89804287,3506.2,3506.0,2.8045]
[1721577851671,0.06282979,3506.1,3506.0,2.8045]
[1721577851982,0.89804287,3506.2,3506.0,2.8045]
[1721577852290,0.89804287,3506.1,3506.0,2.8045]
[1721577852999,0.06282979,3506.1,3506.0,2.8045]
[1721577853870,0.89804287,3506.3,3506.0,2.8045]
[1721577854206,0.06283558,3506.2,3506.0,2.8045]
[1721577854379,0.89804287,3506.4,3506.0,2.8045]
[1721577854753,0.06283671,3506.3,3506.0,2.8045]
[1721577856194,0.06283671,3506.3,3506.0,22.5345]
[1721577856867,0.96087958,3506.3,3506.0,22.5345]
[1721577857475,0.06283671,3506.3,3506.0,22.5345]
[1721577857771,0.96087958,3506.3,3506.0,22.5345]
[1721577858773,0.89804287,3506.2,3506.0,22.5345]
[1721577859107,0.96090726,3506.2,3506.0,22.5345]
[1721577859276,0.89804287,3506.2,3506.0,22.5345]
[1721577859475,3.75013287,3506.2,3506.0,22.5345]
[1721577859683,0.06290944,3506.1,3506.0,22.5345]
[1721577860377,0.89804287,3506.3,3506.0,22.5345]
[1721577860589,0.06290246,3506.1,3506.0,22.5345]
[1721577860779,0.89804287,3506.3,3506.0,22.5345]
[1721577860994,0.06290246,3506.1,3506.0,22.5345]
[1721577861159,0.89804287,3506.3,3506.0,22.5345]
[1721577861663,0.89804287,3506.4,3506.1,2.3077]
[1721577862064,0.89804287,3506.4,3506.1,22.0377]
[1721577862291,0.06290567,3506.3,3506.1,22.0377]
[1721577863259,0.06290567,3506.3,3506.2,0.55]
[1721577863460,0.06290567,3506.3,3506.2,20.28]
[1721577863679,0.89804287,3506.5,3506.2,20.28]
[1721577864304,0.06290728,3506.4,3506.2,20.28]
[1721577864600,0.96095015,3506.4,3506.2,20.28]
[1721577866897,0.89804287,3506.3,3506.2,20.28]
[1721577867108,0.96098428,3506.3,3506.2,20.28]
[1721577869402,0.06294141,3506.3,3506.2,20.28]
[1721577870466,0.96098428,3506.3,3506.2,20.28]
[1721577870670,3.81298428,3506.3,3506.2,20.28]
[1721577870870,2.91494141,3506.3,3506.2,19.73]
[1721577877399,4.11205616,3506.3,3506.2,19.73]
[1721577877810,2.91494141,3506.3,3506.2,19.73]
[1721577878435,3.81233406,3506.3,3506.2,19.73]
[1721577878990,2.91494141,3506.3,3506.2,19.73]
[1721577879804,3.81240856,3506.3,3506.2,19.73]
[1721577880004,2.91494141,3506.3,3506.2,19.73]
[1721577881018,3.81247816,3506.3,3506.2,19.73]
[1721577881188,4.11205616,3506.3,3506.2,19.73]
[1721577881926,2.91494141,3506.3,3506.2,19.73]
[1721577882625,4.11205616,3506.3,3506.2,19.73]
[1721577883025,2.91494141,3506.3,3506.2,19.73]
[1721577883201,4.11205616,3506.3,3506.2,19.73]
[1721577883614,2.91494141,3506.3,3506.2,19.73]
[1721577884241,4.11205616,3506.3,3506.2,19.73]
[1721577884826,4.11205616,3506.3,3506.2,22.0144]
[1721577885530,4.11253743,3506.3,3506.2,22.0144]
[1721577885819,2.91494141,3506.3,3506.2,22.0144]
[1721577886384,4.4118713,3506.3,3506.2,22.0144]
[1721577886618,2.91494141,3506.3,3506.2,22.0144]
[1721577887405,4.4118713,3506.3,3506.2,22.0144]
[1721577888415,4.41226284,3506.3,3506.2,22.0144]
[1721577889642,4.41298542,3506.3,3506.2,22.0144]
[1721577889846,2.91494141,3506.3,3506.2,22.0144]
[1721577890041,4.4130153,3506.3,3506.2,22.0144]
[1721577891436,2.91494141,3506.3,3506.2,22.0144]
[1721577891633,4.41314406,3506.3,3506.2,22.0144]
[1721577891928,2.91494141,3506.3,3506.2,22.0144]
[1721577892248,4.41314406,3506.3,3506.2,22.0144]
[1721577893250,0.06294141,3506.3,3506.2,22.0144]
[1721577893543,0.06294141,3506.3,3506.2,23.4094]
[1721577893544,1.26157782,3506.3,3506.2,23.4094]
[1721577893748,0.06294141,3506.3,3506.2,22.5644]
[1721577894043,1.19863641,3506.4,3506.3,2.3551]
[1721577894274,1.19863641,3506.4,3506.3,2.9051]
[1721577894607,1.19863641,3506.5,3506.3,2.9051]
[1721577894835,1.19863641,3506.5,3506.4,0.55]
[1721577896945,1.19863641,3506.5,3506.3,2.833]
[1721577897325,1.19863641,3506.6,3506.4,0.845]
[1721577897523,1.19863641,3506.7,3506.6,2.283]
[1721577897755,1.19863641,3506.8,3506.6,2.283]
[1721577897933,1.19863641,3506.8,3506.7,2.833]
[1721577898318,1.19863641,3506.9,3506.7,2.833]
[1721577898524,1.19863641,3506.9,3506.8,0.55]
[1721577899472,1.19863641,3507.0,3506.8,0.55]
[1721577900167,1.19863641,3506.9,3506.8,0.55]
[1721577900741,1.19863641,3506.9,3506.8,20.28]
[1721577901072,1.19863641,3507.0,3506.8,20.28]
[1721577901275,1.19863641,3506.9,3506.8,20.28]
[1721577901765,1.19863641,3507.0,3506.8,20.28]
[1721577901939,1.26163786,3506.9,3506.8,20.28]
[1721577902466,0.96086381,3506.9,3506.8,20.28]
[1721577902667,0.06300145,3506.9,3506.8,20.28]
[1721577903473,0.96071865,3506.9,3506.8,20.28]
[1721577903994,0.06300145,3506.9,3506.8,22.6352]
[1721577904141,0.06300145,3506.9,3506.8,26.3318]
[1721577904343,0.8977172,3507.4,3506.8,23.9766]
[1721577904643,0.06314336,3507.3,3507.2,2.3552]
[1721577905072,0.8977172,3507.5,3507.2,2.9052]
[1721577905384,0.8977172,3507.5,3507.3,0.55]
[1721577905787,3.7487572,3507.5,3506.9,19.73]
[1721577905970,3.7488272,3507.4,3507.0,2.3552]
[1721577906142,3.7488272,3507.4,3507.1,0.55]
[1721577906914,0.8977172,3507.4,3507.1,0.55]
[1721577907082,4.04961641,3507.6,3507.2,2.3552]
[1721577907083,0.8977172,3507.5,3507.2,2.3552]
[1721577907387,2.85105,3507.5,3507.2,2.3552]
[1721577908187,0.8977172,3507.6,3507.2,2.3552]